bitfinex/quotes_SOLUSD_20240913
["timestamp","ask_amount","ask_price","bid_price","bid_amount"]
[1726208115658,6.93058,134.74,134.69,21.8854]
[1726208116041,23.776884,134.73,134.69,21.8854]
[1726208116241,6.6796,134.74,134.7,6.6813]
[1726208116657,6.6796,134.74,134.69,21.4738]
[1726208116658,6.6791,134.75,134.71,6.6809]
[1726208116875,6.6786,134.76,134.71,6.6809]
[1726208117171,6.6781,134.77,134.72,6.6801]
[1726208117339,6.9309272,134.78,134.73,18.038803]
[1726208117535,0.2534272,134.78,134.74,6.6794]
[1726208117947,0.2534272,134.78,134.75,6.6786]
[1726208118149,0.2534272,134.78,134.75,1.48405467]
[1726208118464,0.2534272,134.78,134.76,6.6782]
[1726208118843,0.2534272,134.78,134.75,6.6789]
[1726208122537,24.0303112,134.78,134.74,23.3776]
[1726208129751,0.2534272,134.78,134.75,6.6788]
[1726208138292,0.2534272,134.78,134.76,6.6785]
[1726208139183,0.2534272,134.78,134.75,6.6789]
[1726208139687,0.2534272,134.78,134.74,23.3776]
[1726208139688,6.9310272,134.78,134.74,23.3776]
[1726208141286,0.2534272,134.78,134.75,6.6789]
[1726208146900,0.2534272,134.78,134.76,6.6785]
[1726208152681,0.2534272,134.78,134.77,6.678]
[1726208157192,0.2534272,134.78,134.76,23.3746]
[1726208159411,0.2534272,134.78,134.76,16.6962]
[1726208159621,0.2534272,134.78,134.75,6.6786]
[1726208168419,0.2534272,134.78,134.76,6.6785]
[1726208172218,0.2534272,134.78,134.77,6.678]
[1726208174316,0.2534272,134.78,134.76,6.6783]
[1726208192446,0.2534272,134.78,134.77,6.678]
[1726208194741,0.2534272,134.78,134.77,8.16160807]
[1726208195038,0.2534272,134.78,134.77,6.678]
[1726208211365,0.2534272,134.78,134.76,6.6784]
[1726208211544,0.2534272,134.78,134.75,23.3762]
[1726208212063,0.2534272,134.78,134.76,6.6785]
[1726208228882,0.2534272,134.78,134.77,6.678]
[1726208230062,0.2534272,134.78,134.77,22.0683]
[1726208237388,0.2534272,134.78,134.77,43.55174866]
[1726208237689,0.2534272,134.78,134.77,42.0683]
[1726208237904,0.2534272,134.78,134.77,43.55168341]
[1726208238577,0.2534272,134.78,134.77,56.97474344]
[1726208238782,0.2534272,134.78,134.77,63.13384344]
[1726208239306,0.2534272,134.78,134.77,63.38482344]
[1726208239593,0.2534272,134.78,134.77,48.47838]
[1726208239890,0.2534272,134.78,134.77,48.35289]
[1726208248386,0.2534272,134.78,134.77,42.0683]
[1726208250006,0.2534272,134.78,134.77,6.678]
[1726208250174,0.2534272,134.78,134.76,6.6783]
[1726208250392,6.6781,134.77,134.73,6.6799]
[1726208250731,6.6781,134.77,134.72,16.7006]
[1726208252397,6.6781,134.77,134.73,6.6799]
[1726208257005,6.6781,134.77,134.72,23.3811]
[1726208257204,6.6786,134.76,134.72,23.3811]
[1726208257813,6.6786,134.76,134.72,16.7006]
[1726208258023,6.6786,134.76,134.72,23.381]
[1726208259526,6.6786,134.76,134.72,16.7006]
[1726208260232,6.679,134.75,134.72,16.7006]
[1726208264034,6.6786,134.76,134.72,16.7006]
[1726208264531,6.6786,134.76,134.72,23.381]
[1726208271522,6.679,134.75,134.71,6.6809]
[1726208271729,6.679,134.75,134.7,6.6813]
[1726208272222,6.679,134.75,134.71,6.6809]
[1726208283445,23.776884,134.76,134.69,16.7043]
[1726208283756,0.12549,134.75,134.69,16.7043]
[1726208284052,0.12549,134.75,134.69,23.3861]
[1726208284053,6.6797,134.74,134.69,23.3861]
[1726208284466,23.776884,134.73,134.69,16.7043]
[1726208284639,23.776884,134.73,134.7,6.6815]
[1726208286453,6.6797,134.74,134.7,6.6815]
[1726208290368,6.6797,134.74,134.69,16.7043]
[1726208290369,43.776884,134.76,134.72,6.6803]
[1726208290658,50.455884,134.76,134.71,23.3826]
[1726208291234,6.679,134.75,134.71,23.3826]
[1726208291853,20.0,134.76,134.72,6.6804]
[1726208292054,20.0,134.76,134.73,6.6799]
[1726208293159,20.0,134.76,134.72,6.6803]
[1726208293859,26.6788,134.76,134.71,23.3826]
[1726208301272,6.6791,134.75,134.71,23.3826]
[1726208301453,6.6791,134.75,134.71,16.7018]
[1726208302360,30.456484,134.74,134.7,6.6813]
[1726208302661,6.6801,134.73,134.69,22.8905]
[1726208304848,6.6801,134.73,134.69,6.6818]
[1726208305068,6.6805,134.72,134.68,23.3879]
[1726208309846,6.6801,134.73,134.69,6.6819]
[1726208316057,6.6805,134.72,134.68,23.3878]
[1726208322386,6.6802,134.73,134.69,8.16650722]
[1726208322562,6.6802,134.73,134.69,6.6818]
[1726208328191,23.776884,134.73,134.67,6.5533]
[1726208328395,23.776884,134.73,134.67,6.6828]
[1726208328396,6.6813,134.71,134.67,6.6828]
[1726208328683,6.6815,134.7,134.66,6.6834]
[1726208329983,6.6811,134.71,134.66,6.6834]
[1726208330468,6.6811,134.71,134.67,6.6828]
[1726208331070,6.6806,134.72,134.68,6.6822]
[1726208331386,20.0,134.74,134.67,23.3896]
[1726208331387,6.681,134.71,134.67,23.3896]
[1726208342304,6.6806,134.72,134.68,6.6823]
[1726208355913,30.457084,134.73,134.68,6.6823]
[1726208356116,20.0,134.72,134.68,6.6823]
[1726208356313,20.0,134.72,134.69,6.6819]
[1726208356792,26.6805,134.72,134.68,6.6824]
[1726208356995,6.681,134.71,134.67,23.3892]
[1726208359312,6.6804,134.73,134.69,6.6818]
[1726208359519,6.6796,134.74,134.7,6.6814]
[1726208363620,6.6796,134.74,134.7,8.16593515]
[1726208363821,20.0,134.74,134.7,6.6814]
[1726208365122,6.6786,134.76,134.71,6.6809]
[1726208365498,0.25098,134.77,134.71,6.6809]
[1726208365499,6.6791,134.75,134.71,6.6809]
[1726208367003,20.0,134.76,134.72,6.6804]
[1726208367324,20.0,134.76,134.71,16.7015]
[1726208367502,0.2534272,134.78,134.73,16.6993]
[1726208367703,0.2534272,134.78,134.75,6.679]
[1726208368133,0.2534272,134.78,134.77,6.678]
[1726208368299,0.2534272,134.78,134.76,23.3747]
[1726208374310,0.2534272,134.78,134.76,16.6963]
[1726208375930,0.2534272,134.78,134.75,6.6789]
[1726208376933,0.2534272,134.78,134.74,6.6793]
[1726208381017,0.2534272,134.78,134.75,6.6788]
[1726208384250,0.2534272,134.78,134.76,6.6782]
[1726208389562,0.2534272,134.78,134.75,23.3755]
[1726208404537,0.2534272,134.78,134.76,6.6785]
[1726208408774,0.2534272,134.78,134.77,6.678]
[1726208412545,0.2534272,134.78,134.75,16.6967]
[1726208412743,0.2534272,134.78,134.76,6.6781]
[1726208428480,0.2534272,134.78,134.75,23.3755]
[1726208447295,6.9309272,134.78,134.75,16.6967]
[1726208450999,0.2534272,134.78,134.75,23.3757]
[1726208455591,0.2534272,134.78,134.76,6.6785]
[1726208456694,0.2534272,134.78,134.77,6.678]
[1726208463904,0.2534272,134.78,134.76,6.6784]
[1726208464319,0.2534272,134.78,134.75,16.6967]
[1726208464320,0.2534272,134.78,134.75,23.3755]
[1726208474711,6.9310272,134.78,134.75,16.6967]
[1726208475501,6.6781,134.77,134.73,6.6798]
[1726208476027,6.6786,134.76,134.72,39.5179]
[1726208476199,6.6786,134.76,134.72,23.3806]
[1726208479311,6.679,134.75,134.72,16.7002]
[1726208479713,6.679,134.75,134.7,33.4054]
[1726208479714,6.6796,134.74,134.7,6.6815]
[1726208480019,24.0303112,134.78,134.7,6.6815]
[1726208480020,6.6791,134.75,134.7,6.6815]
[1726208480924,6.6791,134.75,134.7,6.6814]
[1726208481120,6.6796,134.74,134.7,6.6814]
[1726208481434,6.6809,134.72,134.67,6.6826]
[1726208482614,6.6809,134.72,134.66,16.7078]
[1726208482615,6.80559,134.73,134.68,6.6822]
[1726208483326,6.6796,134.74,134.69,6.6818]
[1726208483507,6.6796,134.74,134.7,6.6813]
[1726208484012,6.6796,134.74,134.68,16.7055]
[1726208484013,16.5831,134.75,134.66,14.90644344]
[1726208484321,6.80439,134.76,134.7,16.7029]
[1726208485409,6.80439,134.76,134.72,6.6804]
[1726208486307,6.80439,134.76,134.71,6.6809]
[1726208487716,6.6792,134.75,134.71,6.6809]
[1726208489414,30.456484,134.74,134.7,23.3843]
[1726208496885,0.12549,134.76,134.7,16.7029]
[1726208497067,20.0,134.77,134.7,16.7029]
[1726208497264,20.0,134.77,134.69,16.353]
[1726208497594,20.0,134.77,134.72,16.7001]
[1726208498167,26.6784,134.77,134.73,6.6799]
[1726208498574,26.6784,134.77,134.72,23.3804]
[1726208499476,16.2926172,134.78,134.73,6.6799]
[1726208499680,16.2926172,134.78,134.74,6.679]
[1726208499681,0.2534272,134.78,134.74,6.679]
[1726208499896,20.2534272,134.78,134.74,6.679]
[1726208502493,0.2534272,134.78,134.75,6.679]
[1726208509987,0.2534272,134.78,134.72,22.4572]
[1726208510175,0.2534272,134.78,134.77,6.678]
[1726208525818,0.2534272,134.78,134.76,23.3743]
[1726208525986,6.9309272,134.78,134.74,6.6794]
[1726208526385,0.2534272,134.78,134.74,6.6794]
[1726208529814,0.2534272,134.78,134.72,22.4572]
[1726208530013,6.9310272,134.78,134.73,6.6799]
[1726208530514,6.9310272,134.78,134.74,6.6794]
[1726208537014,6.6786,134.76,134.72,16.7006]
[1726208537221,6.6786,134.76,134.72,23.381]
[1726208538394,6.6781,134.77,134.72,23.381]
[1726208538617,6.6781,134.77,134.73,6.6799]
[1726208551229,6.6781,134.77,134.72,23.3809]
[1726208551599,6.6786,134.76,134.72,23.3809]
[1726208551914,6.6795,134.74,134.7,6.6813]
[1726208552315,6.6806,134.72,134.69,16.704]
[1726208552504,23.776884,134.75,134.69,16.704]
[1726208552709,0.12549,134.74,134.69,16.704]
[1726208553331,6.6801,134.73,134.69,23.3859]
[1726208560815,6.6813,134.71,134.67,6.6826]
[1726208563352,30.457484,134.72,134.67,6.6826]
[1726208564629,30.457484,134.72,134.68,6.6824]
[1726208570065,30.457484,134.72,134.67,6.6828]
[1726208571252,6.6811,134.71,134.67,6.6828]
[1726208571454,6.6815,134.7,134.66,23.3913]
[1726208573185,6.6812,134.71,134.66,23.3913]
[1726208573357,23.776884,134.7,134.66,23.3913]
[1726208575258,23.776884,134.7,134.67,6.6829]
[1726208575846,6.80619,134.72,134.68,6.6822]
[1726208580546,6.6807,134.72,134.68,6.6822]
[1726208580746,6.68,134.73,134.69,6.6818]
[1726208589380,67.8583,134.76,134.68,16.7058]
[1726208589381,6.6796,134.74,134.7,6.6814]
[1726208596364,20.0,134.74,134.71,6.6809]
[1726208597086,6.6786,134.76,134.72,6.6805]
[1726208597292,20.0,134.75,134.72,6.6805]
[1726208597996,22.08239,134.77,134.73,6.6799]
[1726208598163,20.0,134.76,134.73,6.6799]
[1726208600793,26.6785,134.76,134.72,23.3815]
[1726208605079,20.0,134.76,134.72,23.3815]
[1726208605693,20.0,134.76,134.73,6.6799]
[1726208616110,20.0,134.76,134.72,23.3814]
[1726208618807,6.6787,134.76,134.72,23.3814]
[1726208619184,6.679,134.75,134.72,16.7011]
[1726208628426,26.6787,134.76,134.72,23.3816]
[1726208631437,20.0,134.76,134.73,6.6799]
[1726208633335,6.9310272,134.78,134.74,6.6792]
[1726208635199,0.2534272,134.78,134.74,6.6792]
[1726208635405,0.2534272,134.78,134.75,6.6789]
[1726208644238,6.9311272,134.78,134.74,23.3778]
[1726208654061,0.2534272,134.78,134.74,16.6985]
[1726208654231,0.2534272,134.78,134.76,16.6956]
[1726208654558,0.2534272,134.78,134.75,6.6789]
[1726208655949,6.9310272,134.78,134.74,6.6794]
[1726208656945,6.6781,134.77,134.73,23.3791]
[1726208657138,0.2534272,134.78,134.73,23.3791]
[1726208658334,6.9310272,134.78,134.73,23.3791]
[1726208659052,6.9310272,134.78,134.74,6.6794]
[1726208662720,0.2534272,134.78,134.75,6.679]
[1726208664429,0.2534272,134.78,134.76,6.6783]
[1726208665129,0.2534272,134.78,134.75,23.3758]
[1726208671452,6.9310272,134.78,134.75,16.697]
[1726208674756,0.2534272,134.78,134.75,23.376]
[1726208690163,0.2534272,134.78,134.77,6.678]
[1726208701383,0.2534272,134.78,134.75,32.0386]
[1726208701676,0.2534272,134.78,134.75,23.3759]
[1726208708694,0.2534272,134.78,134.72,15.7978]
[1726208708695,6.6784,134.77,134.72,23.381]
[1726208708995,6.6784,134.77,134.73,6.68]
[1726208711275,6.80419,134.76,134.72,23.381]
[1726208712279,6.6782,134.77,134.72,23.381]
[1726208715835,6.6782,134.77,134.73,6.6799]
[1726208718491,6.6786,134.76,134.72,23.381]
[1726208719378,0.2534272,134.78,134.73,6.6796]
[1726208720314,6.6784,134.77,134.72,23.3809]
[1726208720610,6.6786,134.76,134.72,23.3809]
[1726208721405,6.6786,134.76,134.72,16.7006]
[1726208721781,51.3386,134.76,134.72,16.7006]
[1726208721989,6.6786,134.76,134.72,16.7006]
[1726208725110,6.679,134.75,134.72,16.7006]
[1726208726612,6.6795,134.74,134.7,21.725]
[1726208726813,6.68,134.73,134.69,23.3861]
[1726208731613,6.6795,134.74,134.7,6.6814]
[1726208739239,20.0,134.74,134.71,6.6809]
[1726208744925,26.6796,134.74,134.7,6.6814]
[1726208745333,23.776884,134.73,134.69,16.7042]
[1726208745730,23.776884,134.74,134.69,16.7042]
[1726208746435,6.6801,134.73,134.69,23.3861]
[1726208747219,5.480308,134.73,134.69,23.3861]
[1726208748441,30.457484,134.72,134.69,16.7042]
[1726208748622,6.6806,134.72,134.68,6.6823]
[1726208764149,6.6811,134.71,134.67,6.6829]
[1726208764349,6.6815,134.7,134.66,45.0868]
[1726208765357,6.6811,134.71,134.66,45.0868]
[1726208767148,0.12549,134.72,134.66,45.0868]
[1726208767149,30.583974,134.7,134.66,45.0868]
[1726208769355,6.6822,134.69,134.66,21.6958]
[1726208769658,30.583974,134.7,134.66,21.6958]
[1726208771154,6.6821,134.69,134.66,21.6958]
[1726208771752,30.459384,134.68,134.66,15.4268]
[1726208771951,23.776884,134.68,134.63,16.9649272]
[1726208772155,0.12549,134.67,134.63,16.9649272]
[1726208773457,6.80849,134.67,134.63,23.6498272]
[1726208775959,23.776884,134.66,134.63,16.9649272]
[1726208776130,6.6836,134.66,134.63,16.9649272]
[1726208777558,23.776884,134.65,134.63,0.2534272]
[1726208778453,30.460984,134.65,134.63,0.2534272]
[1726208779153,23.776884,134.65,134.63,0.2534272]
[1726208787349,30.460884,134.65,134.63,0.2534272]
[1726208788853,26.6844,134.64,134.63,0.2534272]
[1726208789058,20.0,134.64,134.63,0.2534272]
[1726208790278,6.684,134.65,134.63,0.2534272]
[1726208790461,20.0,134.64,134.63,0.2534272]
[1726208796677,26.6844,134.64,134.63,0.2534272]
[1726208797278,50.586774,134.64,134.63,0.2534272]
[1726208799270,50.712264,134.64,134.63,0.2534272]
[1726208802681,95.402264,134.64,134.63,0.2534272]
[1726208816594,95.402264,134.64,134.59,22.9348272]
[1726208816595,6.6854,134.62,134.59,22.9348272]
[1726208817194,30.461984,134.63,134.59,22.9348272]
[1726208823120,75.151984,134.63,134.59,22.9348272]
[1726208823420,75.151984,134.63,134.59,29.6217272]
[1726208824615,30.461984,134.63,134.59,29.6217272]
[1726208826606,23.776884,134.63,134.59,29.6217272]
[1726208829300,23.776884,134.63,134.59,16.6713272]
[1726208829528,6.81099,134.62,134.59,0.2534272]
[1726208843341,51.50099,134.62,134.59,0.2534272]
[1726208843651,6.81099,134.62,134.59,0.2534272]
[1726208848143,23.776884,134.61,134.59,0.2534272]
[1726208861158,6.81099,134.62,134.59,0.2534272]
[1726208870335,6.6836,134.66,134.62,6.6852]
[1726208870541,6.6836,134.66,134.61,23.3999]
[1726208870741,6.684,134.65,134.61,23.3999]
[1726208870975,6.684,134.65,134.61,16.7141]
[1726208871145,44.69,134.67,134.61,16.7141]
[1726208871462,6.6838,134.66,134.61,16.7141]
[1726208871866,43.902374,134.65,134.61,23.4]
[1726208872666,50.586574,134.65,134.61,23.4]
[1726208874468,6.683,134.67,134.61,16.7141]
[1726208874639,20.0,134.66,134.61,16.7141]
[1726208875373,20.0,134.66,134.63,6.6848]
[1726208876761,26.6836,134.66,134.62,6.6853]
[1726208878077,6.6836,134.66,134.62,6.6853]
[1726208886383,6.6836,134.66,134.59,6.7278272]
[1726208886384,68.466884,134.65,134.59,0.2534272]
[1726208886685,23.776884,134.61,134.59,0.2534272]
[1726208893391,30.462984,134.61,134.59,0.2534272]
[1726208899396,6.6864,134.6,134.59,0.2534272]
[1726208899591,30.463284,134.6,134.59,0.2534272]
[1726208911583,30.588774,134.6,134.59,0.2534272]
[1726208914613,50.588774,134.6,134.59,0.2534272]
[1726208917909,49.961433,134.6,134.59,0.2534272]
[1726208932523,26.059059,134.6,134.59,0.2534272]
[1726208933405,6.059059,134.6,134.59,0.2534272]
[1726208935411,29.835943,134.6,134.59,0.2534272]
[1726208935607,29.961433,134.6,134.59,0.2534272]
[1726208936819,29.961433,134.6,134.55,0.2534272]
[1726208936820,6.6884,134.56,134.55,0.2534272]
[1726208937023,30.465284,134.56,134.55,0.2534272]
[1726208937325,30.590774,134.56,134.55,0.2534272]
[1726208937831,6.688,134.57,134.55,0.2534272]
[1726208938015,6.6884,134.56,134.55,0.2534272]
[1726208938828,30.590774,134.56,134.55,0.2534272]
[1726208939210,6.6884,134.56,134.55,0.2534272]
[1726208942117,30.465284,134.56,134.55,0.2534272]
[1726208942311,30.590774,134.56,134.55,0.2534272]
[1726208943404,6.6884,134.56,134.55,0.2534272]
[1726208946912,50.467284,134.52,134.51,0.2534272]
[1726208947222,50.467284,134.52,134.47,0.2534272]
[1726208947223,23.776884,134.51,134.47,0.2534272]
[1726208948331,6.692,134.49,134.47,0.2534272]
[1726208948525,6.81699,134.5,134.47,0.2534272]
[1726208949238,6.6915,134.5,134.47,0.2534272]
[1726208950325,23.776884,134.51,134.47,6.9463272]
[1726208950644,6.691,134.51,134.47,6.9463272]
[1726208950823,6.691,134.51,134.47,0.2534272]
[1726208956445,6.6914,134.5,134.47,0.2534272]
[1726208976853,23.776884,134.49,134.47,0.2534272]
[1726208977976,6.81689,134.5,134.47,0.2534272]
[1726208978973,6.692,134.49,134.47,0.2534272]
[1726208981364,6.81699,134.5,134.47,0.2534272]
[1726208982173,6.6919,134.49,134.47,0.2534272]
[1726208983478,6.81709,134.5,134.47,0.2534272]
[1726208983779,6.6916,134.5,134.47,0.2534272]
[1726208984859,20.0,134.52,134.48,15.9462]
[1726208985066,16.7208,134.57,134.5,6.691]
[1726208985260,6.6895,134.54,134.5,6.691]
[1726208985855,16.7208,134.57,134.49,18.2161973]
[1726208985856,61.4108,134.57,134.49,16.7294]
[1726208986104,6.69,134.53,134.49,16.7294]
[1726208986576,6.6906,134.52,134.48,22.6384]
[1726208988863,0.12549,134.54,134.49,6.6918]
[1726208988864,6.69,134.53,134.49,6.6918]
[1726208991683,43.776884,134.53,134.48,32.6769]
[1726208991884,0.12549,134.52,134.48,32.6769]
[1726208992477,6.691,134.51,134.48,32.6769]
[1726208992684,0.12549,134.52,134.48,32.6769]
[1726208992874,43.776884,134.53,134.48,32.6769]
[1726208993390,50.467184,134.53,134.48,39.3691]
[1726208994793,20.0,134.53,134.48,32.6769]
[1726208995294,0.12549,134.54,134.5,6.691]
[1726208995678,0.12549,134.55,134.5,6.691]
[1726208996294,6.6903,134.53,134.48,39.3689]
[1726208996491,6.6903,134.53,134.48,32.6769]
[1726208997394,6.6903,134.53,134.49,6.6918]
[1726208998069,6.6906,134.52,134.48,39.3691]
[1726208998470,6.6906,134.52,134.48,32.6769]
[1726208998991,6.6906,134.52,134.48,39.3693]
[1726209000798,6.6906,134.52,134.48,32.6769]
[1726209003674,6.6906,134.52,134.48,39.3692]
[1726209004586,6.6899,134.53,134.49,6.6918]
[1726209004800,20.0,134.52,134.49,6.6918]
[1726209005577,26.6895,134.54,134.5,6.6914]
[1726209005794,23.776884,134.53,134.5,6.6914]
[1726209006073,26.81499,134.54,134.5,6.6914]
[1726209007205,26.81499,134.54,134.49,6.6918]
[1726209009004,6.6881,134.57,134.52,15.9696]
[1726209009187,6.6881,134.57,134.53,6.6899]
[1726209009394,6.6881,134.57,134.52,22.6599]
[1726209010507,6.6885,134.56,134.52,22.6599]
[1726209018903,20.0,134.56,134.53,6.6899]
[1726209019788,20.0,134.56,134.52,22.6598]
[1726209022517,6.6865,134.6,134.56,6.6884]
[1726209022723,44.9434272,134.61,134.55,23.0327]
[1726209023398,0.2534272,134.61,134.56,6.6883]
[1726209024415,6.6866,134.6,134.56,6.6883]
[1726209025307,6.9394272,134.61,134.56,6.6883]
[1726209026717,6.9394272,134.61,134.57,6.6879]
[1726209027026,0.2534272,134.61,134.58,6.6874]
[1726209027603,0.2534272,134.61,134.57,6.6878]
[1726209029413,0.2534272,134.61,134.58,6.6874]
[1726209031596,20.2534272,134.61,134.55,23.0327]
[1726209031915,6.687,134.59,134.55,23.0327]
[1726209038141,30.588974,134.6,134.55,23.0327]
[1726209039120,30.588974,134.6,134.56,6.6883]
[1726209040533,0.12549,134.6,134.57,6.6879]
[1726209040721,26.9394272,134.61,134.57,6.6879]
[1726209041043,26.9394272,134.61,134.56,6.6883]
[1726209043326,6.6865,134.6,134.56,6.6883]
[1726209046646,6.9395272,134.61,134.56,6.6883]
[1726209048243,6.9395272,134.61,134.57,6.6878]
[1726209054029,6.9395272,134.61,134.56,6.6883]
[1726209054030,6.6864,134.6,134.56,6.6883]
[1726209056647,6.687,134.59,134.55,46.4434]
[1726209056948,6.687,134.59,134.55,40.0191]
[1726209057646,6.687,134.59,134.55,23.4107]
[1726209057844,6.6875,134.58,134.55,16.722]
[1726209060152,6.6875,134.58,134.54,6.6893]
[1726209060365,68.592374,134.6,134.52,39.2432]
[1726209060366,23.776884,134.57,134.52,39.2432]
[1726209060658,0.12549,134.56,134.52,16.7253]
[1726209060951,6.689,134.55,134.51,6.6907]
[1726209062150,6.93948,134.56,134.52,6.6904]
[1726209062360,6.81399,134.56,134.52,6.6904]
[1726209067350,6.6889,134.55,134.51,23.4177]
[1726209067561,24.027864,134.54,134.48,16.7307]
[1726209067861,30.717564,134.54,134.49,6.6915]
[1726209068154,30.717564,134.54,134.5,6.6913]
[1726209068155,30.592074,134.54,134.5,6.6913]
[1726209069076,6.689,134.55,134.51,8.17757807]
[1726209069370,6.689,134.55,134.51,6.6908]
[1726209069944,16.3834,134.59,134.55,6.6888]
[1726209070149,6.6869,134.6,134.55,6.6888]
[1726209070856,6.6869,134.6,134.55,23.4104]
[1726209071741,6.6871,134.59,134.55,23.4104]
[1726209073344,6.6871,134.59,134.55,16.7216]
[1726209073575,6.6875,134.58,134.54,6.6893]
[1726209073750,23.902374,134.57,134.53,6.6899]
[1726209074464,0.12549,134.57,134.54,6.6894]
[1726209080087,6.6873,134.59,134.55,6.6888]
[1726209081862,50.588974,134.6,134.55,6.6888]
[1726209082787,50.588974,134.6,134.56,6.6884]
[1726209083580,0.12549,134.6,134.57,6.6878]
[1726209083776,6.9395272,134.61,134.57,6.6878]
[1726209086763,0.2534272,134.61,134.58,6.6874]
[1726209087674,0.2534272,134.61,134.59,6.6868]
[1726209100088,0.2534272,134.61,134.58,16.7181]
[1726209100290,0.2534272,134.61,134.56,6.6883]
[1726209101394,6.9395272,134.61,134.57,6.6879]
[1726209102886,0.2534272,134.61,134.58,6.6874]
[1726209104901,0.2534272,134.61,134.57,23.4073]
[1726209106395,6.9394272,134.61,134.57,23.4073]
[1726209107707,0.2534272,134.61,134.58,6.6874]
[1726209112500,0.2534272,134.61,134.59,6.6868]
[1726209118301,0.2534272,134.61,134.58,6.6873]
[1726209121305,0.2534272,134.61,134.57,23.4074]
[1726209122109,6.9395272,134.61,134.57,23.4074]
[1726209124192,6.81199,134.6,134.57,16.7196]
[1726209125317,0.12549,134.6,134.57,16.7196]
[1726209128217,0.12549,134.6,134.57,23.4074]
[1726209128423,0.2534272,134.61,134.57,23.4074]
[1726209129126,0.2534272,134.61,134.58,6.6872]
[1726209129692,0.2534272,134.61,134.59,6.6868]
[1726209134700,0.2534272,134.61,134.55,15.8897]
[1726209134907,0.2534272,134.61,134.54,23.4122]
[1726209134908,6.6878,134.58,134.54,23.4122]
[1726209135225,30.588974,134.6,134.54,16.7229]
[1726209135415,23.902374,134.6,134.56,6.688]
[1726209137300,30.588874,134.6,134.56,6.688]
[1726209137610,6.687,134.59,134.54,23.4118]
[1726209138523,6.687,134.59,134.55,6.6888]
[1726209138922,51.397,134.59,134.55,6.6888]
[1726209139130,6.687,134.59,134.55,6.6888]
[1726209148931,51.397,134.59,134.55,6.6888]
[1726209149518,30.464384,134.58,134.54,23.4123]
[1726209149805,6.81349,134.57,134.54,16.7229]
[1726209152539,0.12549,134.57,134.54,23.4123]
[1726209152712,6.81349,134.57,134.54,16.7229]
[1726209153030,23.776884,134.56,134.53,6.6898]
[1726209154814,23.776884,134.56,134.51,16.7263]
[1726209155023,0.12549,134.55,134.51,16.7263]
[1726209155238,68.612374,134.57,134.51,16.7263]
[1726209156437,68.612374,134.57,134.52,6.6904]
[1726209156438,23.776884,134.55,134.52,6.6904]
[1726209157241,23.776884,134.55,134.51,23.417]
[1726209157742,6.81359,134.57,134.51,16.7263]
[1726209157940,20.0,134.57,134.53,16.7245]
[1726209159324,20.0,134.57,134.54,6.6893]
[1726209167843,0.12549,134.58,134.55,16.7222]
[1726209168023,21.7817272,134.61,134.55,16.7222]
[1726209168024,23.776884,134.59,134.55,16.7222]
[1726209168219,23.776884,134.59,134.55,23.4109]
[1726209168431,26.6868,134.6,134.56,6.6882]
[1726209179151,71.3968,134.6,134.56,6.6882]
[1726209182737,6.6876,134.58,134.54,6.6893]
[1726209182941,6.688,134.57,134.53,6.6898]
[1726209185261,6.688,134.57,134.52,38.6227]
[1726209186735,6.81409,134.56,134.52,31.9324]
[1726209186940,6.6886,134.56,134.52,31.9324]
[1726209187649,6.6891,134.55,134.52,31.9324]
[1726209188243,6.6891,134.55,134.52,16.7251]
[1726209188644,6.6895,134.54,134.5,6.6913]
[1726209188847,6.6895,134.54,134.49,33.0773]
[1726209188848,6.81449,134.55,134.51,6.6906]